Cogmind - Beta 12 @@@ ROGUE MODE // 2023.08.23 @ 23:10:34 Player: ILikeMonsters1890 Result: Destroyed by G-50 Soldier with Heavy Laser Performance ------------- Evolutions (2) 1000 Regions Visited (5) 1000 Robots Destroyed (74) 370 Value Destroyed (1807) 1807 Prototype IDs (7) 140 Alien Tech Used (0) 0 Bonus (164) 164 TOTAL SCORE: 4481 Bonus ------- High Alert Combat Kills 196 Friendly Fire -32 Cogmind --------- Core Integrity 0/550 Matter 265/300 Energy 99/100 System Corruption 15% Temperature Cool (11) Movement Flying (42) Location -8/Materials Parts ------- > --- POWER (1) -------- (None) > --- PROPULSION (4) --- Wheel Flight Unit Flight Unit > --- UTILITY (4) ------ (None) > --- WEAPON (2) ------- (None) > --- INVENTORY (5) ---- Improved Ion Engine Aluminum Leg Heavy Laser Mini Grenade Launcher Mini Grenade Launcher Peak State ------------ > --- POWER ------------ Heavy Ion Engine > --- PROPULSION ------- Aluminum Leg VSS Leg Wheel Wheel > --- UTILITY ---------- Improved Heat Sink Medium Storage Unit Seismic Detector Hardened Light Armor Plating > --- WEAPON ----------- Heavy Laser Heavy Laser > --- INVENTORY -------- Heavy Ion Engine Advanced Visual Processing Unit Seismic Detector Light Armor Plating Beam Rifle Particle Gun Improved Assault Rifle Improved Assault Rifle Mini Grenade Launcher Mini Grenade Launcher [Rating: 26] Favorites ----------- Power Ion Engine Engine Ion Engine Power Core Light Nuclear Core Propulsion Aluminum Leg Leg Aluminum Leg Wheel Wheel Flight Unit Flight Unit Utility Seismic Detector Device Seismic Detector Storage Medium Storage Unit Processor Advanced Visual Processing Unit Protection Hardened Light Armor Plating Weapon Assault Rifle Energy Gun Heavy Laser Ballistic Gun Assault Rifle Launcher Mini Grenade Launcher Build | -11 -10 -10 -10 -9 -8 ------- Run | Jun Mat Min Exi Min Mat Slots Evolved 4 | . . . . . 4 Power . | . . . . . . Propulsion 2 | . . . . . 2 Utility 2 | . . . . . 2 Weapon . | . . . . . . Parts Attached 79 | 3 4 6 . 9 57 Power 7 | . . . . 3 4 Engine 6 | . . . . 3 3 Core 1 | . . . . . 1 Reactor . | . . . . . . Propulsion 26 | . . . . 1 25 Treads . | . . . . . . Leg 16 | . . . . 1 15 Wheel 7 | . . . . . 7 Hover . | . . . . . . Flight 3 | . . . . . 3 Utility 18 | 2 4 . . 2 10 Device 7 | 2 1 . . 1 3 Storage 5 | . 3 . . . 2 Processor 1 | . . . . . 1 Hackware . | . . . . . . Protection 5 | . . . . 1 4 Artifact . | . . . . . . Weapon 28 | 1 . 6 . 3 18 Energy Gun 16 | 1 . 2 . . 13 Energy Cannon . | . . . . . . Ballistic Gun 7 | . . 3 . 2 2 Ballistic Cannon . | . . . . . . Launcher 5 | . . 1 . 1 3 Special Weapon . | . . . . . . Impact Weapon . | . . . . . . Slashing Weapon . | . . . . . . Piercing Weapon . | . . . . . . Special Melee Weapon . | . . . . . . Unidentified Prototypes 3 | . . . . . 3 Parts Lost 27 | . . . . . 27 Power . | . . . . . . Propulsion 15 | . . . . . 15 Utility 7 | . . . . . 7 Weapon 5 | . . . . . 5 Highest Loss Streak 8 | . . . . . 8 To Critical Strikes . | . . . . . . Average Slot Usage (%) 97 | . 99 100 100 100 93 Engine 11 | . 14 14 14 14 8 Leg 27 | . 28 28 28 28 26 Wheel 3 | . . . . . 7 Device 13 | . 13 14 14 7 14 Storage 11 | . 14 14 14 14 8 Protection 4 | . . . . 6 8 Energy Gun 9 | . 14 2 . . 16 Ballistic Gun 13 | . 14 25 28 28 . Naked Turns . | . . . . . . Heaviest Build 47 | 14 19 20 20 22 47 Greatest Support 47 | 20 20 20 20 20 47 Greatest Overweight (x) 4 | . . . . 1 4 Average Overweight (x) . | . . . . . . Largest Inventory Capacity 30 | 8 30 10 10 10 15 Average Capacity 10 | 8 9 10 10 10 11 Most Carried 11 | 7 10 10 10 10 11 Average Carried 8 | 4 7 9 10 9 8 Final Capacity 10 | 8 10 10 10 10 5 Final Carried 10 | 6 10 10 10 10 5 Class Distribution -------------------- 59% | Mutant 40% | Scavenger-Mutant Dominant Class ---------------- Mutant | -10/Materials Mutant | -10/Mines Mutant | -10/Exiles Mutant | -9/Mines Scavenger-Mutant | -8/Materials Resources | -11 -10 -10 -10 -9 -8 ----------- Run | Jun Mat Min Exi Min Mat Matter Collected 1411 | 269 57 126 . 209 750 Remotely . | . . . . . . Salvage Created 2280 | 186 110 113 . 115 1756 Parts 142 | 20 8 10 . 5 99 Haulers Intercepted 4 | . 1 . . . 3 Recyclers Shooed 2 | 1 . . . 1 . Parts Field Recycled . | . . . . . . Retrieved Matter . | . . . . . . Parts Self-Destructed . | . . . . . . Prevented . | . . . . . . Kills | -11 -10 -10 -10 -9 -8 ------- Run | Jun Mat Min Exi Min Mat Combat Hostiles Destroyed 56 | . 3 5 . 6 42 Guns 40 | . 3 2 . 3 32 AOE 16 | . . 3 . 3 10 Classes Destroyed 12 | 3 3 1 . 3 2 Worker 5 | 1 . . . . 4 Tunneler 6 | 5 . . . . 1 Hauler 4 | . 1 . . . 3 Recycler 2 | 1 . . . 1 . Watcher 2 | . 1 . . . 1 Swarmer 23 | . 3 3 . 3 14 Grunt 18 | . . 2 . . 16 Brawler 3 | . . . . 1 2 Duelist 1 | . . . . . 1 Sentry 9 | . . . . . 9 Demolisher 1 | . . . . 1 . Assembled 1 | . . . . 1 . Best Kill Streak 6 | 3 3 3 . 3 6 Combat Bots Only 5 | . 3 3 . 3 5 Max Kills in Single Turn 5 | 1 1 2 . 2 5 Gunslinging . | . . . . . . Exploded 4 | . . 2 . 2 4 Melee . | . . . . . . Uniques/NPCs Destroyed . | . . . . . . Combat | -11 -10 -10 -10 -9 -8 -------- Run | Jun Mat Min Exi Min Mat Damage Taken 3548 | . 87 187 . 335 2939 Core 704 | . 16 59 . 73 556 Absorbed by Shields . | . . . . . . Core Remaining (%) 70 | 100 . . . 40 . Volleys Fired 193 | 13 12 12 . 19 137 Largest 2 | 2 2 2 . 2 2 Hottest 138 | 60 60 105 . 40 138 Shots Fired 361 | 26 24 22 . 35 254 Gun 350 | 26 24 20 . 32 248 Cannon . | . . . . . . Launcher 11 | . . 2 . 3 6 Special . | . . . . . . Kinetic 76 | 13 12 9 . 32 10 Thermal 274 | 13 12 11 . . 238 Explosive 11 | . . 2 . 3 6 Electromagnetic . | . . . . . . Robot Hit Streak 11 | 7 4 3 . 4 11 Robot Miss Streak 4 | 1 1 4 . 4 3 Penetration Max . | . . . . . . Secondary Targets 4 | . . . . . 4 Max Gunslinging Chain 1 | . . . . . 1 Shots Hit Robots 226 | 19 16 8 . 19 164 Core Hits 117 | 8 6 8 . 10 85 Critical Kills 1 | . 1 . . . . Critical Parts Destroyed . | . . . . . . Critical Strikes 5 | . 1 . . . 4 Burn 4 | . . . . . 4 Destroy 1 | . 1 . . . . Melee Attacks . | . . . . . . Impact . | . . . . . . Slashing . | . . . . . . Piercing . | . . . . . . Sneak Attacks . | . . . . . . Combat Hostiles . | . . . . . . Follow-up Attacks . | . . . . . . Damage Inflicted 4710 | 220 193 234 . 416 3647 Guns 3657 | 220 193 104 . 241 2899 Cannons . | . . . . . . Explosions 997 | . . 130 . 156 711 Melee . | . . . . . . Ramming 56 | . . . . 19 37 Kinetic 638 | 133 99 48 . 241 117 Thermal 3019 | 87 94 56 . . 2782 Explosive 997 | . . 130 . 156 711 Electromagnetic . | . . . . . . Impact . | . . . . . . Slashing . | . . . . . . Piercing . | . . . . . . Highest Corruption 15 | . . . . . 15 Average Corruption 14 | . . . . . 14 Corruption Purged . | . . . . . . Corruption Blocked . | . . . . . . Effects 5 | . . . . . 5 Message Errors 2 | . . . . . 2 Matter Fused 1 | . . . . . 1 Energy Discharges 1 | . . . . . 1 Parts Rejected 1 | . . . . . 1 Overload Shots . | . . . . . . Overflow Damage . | . . . . . . Projectiles . | . . . . . . Explosions . | . . . . . . Melee . | . . . . . . Knockbacks . | . . . . . . Impact . | . . . . . . Kinetic . | . . . . . . Secondary . | . . . . . . Self-Inflicted Damage 72 | . . . . 61 11 Shots 3 | . . . . 3 . Rammed 6 | . . . . . 6 Targets Rammed 14 | . . . . 6 8 Kicked 8 | . . . . 6 2 Crushed . | . . . . . . Highest Temperature 754 | . . 93 . 5 754 Average Temperature 180 | . . 44 . 5 189 Received Heat Transfer 1434 | . . 99 . 12 1323 Effects 46 | . . . . . 46 Shutdowns 6 | . . . . . 6 Energy Bleed 10 | . . . . . 10 Interference 6 | . . . . . 6 Matter Decay 5 | . . . . . 5 Short Circuit 5 | . . . . . 5 Damage (minor) 2 | . . . . . 2 Damage (major) 11 | . . . . . 11 Damage (core) 1 | . . . . . 1 Siege Activations . | . . . . . . Robots Corrupted . | . . . . . . Combat Hostiles . | . . . . . . Parts Fried . | . . . . . . Impact Corruptions . | . . . . . . Robots Melted . | . . . . . . Combat Hostiles . | . . . . . . Parts Melted 13 | . 1 . . . 12 Heat Transferred 6651 | 200 200 125 . . 6126 Parts Sabotaged . | . . . . . . Parts Stolen . | . . . . . . Parts Stripped . | . . . . . . Power Chain Reactions . | . . . . . . Missiles Intercepted . | . . . . . . Alert | -11 -10 -10 -10 -9 -8 ------- Run | Jun Mat Min Exi Min Mat Peak Influence 737 | 35 117 181 . 168 737 Initial 45 | . 22 45 . . 5 Average 210 | 17 58 93 . 55 354 Maximum Alert Level 3 | . . . . . 3 Low Security (%) 66 | 100 100 100 . 100 33 Level 1 9 | . . . . . 19 Level 2 20 | . . . . . 41 Level 3 2 | . . . . . 5 Level 4 . | . . . . . . Level 5 . | . . . . . . High Security . | . . . . . . Max Security . | . . . . . . Squads Dispatched 9 | . 2 . . . 7 Investigation 1 | . . . . . 1 Extermination . | . . . . . . Reinforcement 3 | . 2 . . . 1 Assault 2 | . . . . . 2 Garrison 3 | . . . . . 3 Intercept . | . . . . . . Searches Triggered . | . . . . . . Construction Impeded 1 | . . . . . 1 Haulers Reinforced . | . . . . . . Active Scanning Responses . | . . . . . . Cargo Convoy Interrupts . | . . . . . . Stealth | -11 -10 -10 -10 -9 -8 --------- Run | Jun Mat Min Exi Min Mat Distress Signals 2 | . . . . . 2 Communications Jammed . | . . . . . . Distress Signals . | . . . . . . Times Spotted 87 | . 5 5 . 9 68 Peak Tracking Total 7 | . 4 3 . 3 7 Tactical Retreats 4 | . . . . . 4 Traps | -11 -10 -10 -10 -9 -8 ------- Run | Jun Mat Min Exi Min Mat Traps Triggered . | . . . . . . Indirectly . | . . . . . . Trap Hack Attempts . | . . . . . . Triggered . | . . . . . . Disarmed . | . . . . . . Reprogrammed 6 | . . . . . 6 Reused 3 | . . . . . 3 Traps Extracted . | . . . . . . Installed . | . . . . . . Triggered 3 | . . . . . 3 Machines | -11 -10 -10 -10 -9 -8 ---------- Run | Jun Mat Min Exi Min Mat Machines Disabled 2 | . . . . . 2 Max in Single Turn 1 | . . . . . 1 Garrison Access 1 | . . . . . 1 Machines Repaired . | . . . . . . Machines Sabotaged . | . . . . . . Overloaded Fab Kills . | . . . . . . Hacking | -11 -10 -10 -10 -9 -8 --------- Run | Jun Mat Min Exi Min Mat Machines Accessed 17 | . 4 . 1 . 12 Terminals 13 | . 3 . . . 10 Fabricators . | . . . . . . Repair Stations . | . . . . . . Recycling Units 2 | . 1 . . . 1 Scanalyzers . | . . . . . . Garrison Access 1 | . . . . . 1 Total Hacks 48 | . 14 . 1 . 33 Successful 13 | . 3 . 1 . 9 Failed 35 | . 11 . . . 24 Catastrophic 5 | . 1 . . . 4 Database Lockouts . | . . . . . . Manual 13 | . 5 . . . 8 Terminals 42 | . 11 . . . 31 Fabricators . | . . . . . . Repair Stations . | . . . . . . Recycling Units 4 | . 3 . . . 1 Scanalyzers . | . . . . . . Garrison Access 1 | . . . . . 1 Terminal Hacks 10 | . 2 . 1 . 7 Record 1 | . . . 1 . . Robot Analysis 2 | . 1 . . . 1 Prototype ID Bank 3 | . 1 . . . 2 Branch Access Points 1 | . . . . . 1 Unreport Threat 1 | . . . . . 1 Locate Traps 1 | . . . . . 1 Reprogram Traps 1 | . . . . . 1 Fabricator Hacks . | . . . . . . Repair Station Hacks . | . . . . . . Recycling Unit Hacks 1 | . . . . . 1 Retrieve Components 1 | . . . . . 1 Scanalyzer . | . . . . . . Garrison Access Hacks 1 | . . . . . 1 Seal Access 1 | . . . . . 1 Unauthorized Hacks 1 | . 1 . . . . Terminals 1 | . 1 . . . . Operators 1 | . 1 . . . . Fabricators . | . . . . . . Repair Stations . | . . . . . . Recycling Units . | . . . . . . Scanalyzers . | . . . . . . Garrison Access . | . . . . . . Data Cores Recovered . | . . . . . . Used . | . . . . . . Hacking Detections 14 | . 4 . . . 10 Full Trace Events 3 | . 2 . . . 1 Feedback Events . | . . . . . . Feedback Blocked . | . . . . . . Robot Schematics Acquired . | . . . . . . Robots Built . | . . . . . . Authchips . | . . . . . . Time . | . . . . . . Total Robot Build Rating . | . . . . . . Part Schematics Acquired . | . . . . . . Parts Built . | . . . . . . Authchips . | . . . . . . Time . | . . . . . . Total Part Build Rating . | . . . . . . Parts Repaired . | . . . . . . Time . | . . . . . . Parts Recycled . | . . . . . . Recycled Matter . | . . . . . . Retrieved Matter . | . . . . . . Retrieved Components 10 | . . . . . 10 Parts Scanalyzed . | . . . . . . Part Schematics Acquired . | . . . . . . Parts Damaged . | . . . . . . Bothacking | -11 -10 -10 -10 -9 -8 ------------ Run | Jun Mat Min Exi Min Mat Used RIF Installer . | . . . . . . Robots Hacked . | . . . . . . Non-combat . | . . . . . . Combat . | . . . . . . Robot Hacks Applied . | . . . . . . Relay Couplers Released . | . . . . . . Fabnet Peak Effective % . | . . . . . . Robots Rewired . | . . . . . . Allies Hacked . | . . . . . . Hacks Repelled . | . . . . . . Allies | -11 -10 -10 -10 -9 -8 -------- Run | Jun Mat Min Exi Min Mat Total Allies 1 | . . 1 . . . Largest Group 1 | . . 1 1 . . Highest-Rated Group 31 | . . 31 31 . . Highest-Rated Ally 31 | . . 31 31 . . Total Orders . | . . . . . . Ally Attacks . | . . . . . . Total Damage . | . . . . . . Kills . | . . . . . . Allies Corrupted . | . . . . . . Allies Melted . | . . . . . . Intel | -11 -10 -10 -10 -9 -8 ------- Run | Jun Mat Min Exi Min Mat Robot Analysis Total 2 | . 1 . . . 1 Derelict Logs Recovered 4 | . . 3 . 1 . Drone Launches . | . . . . . . Drone Recoveries . | . . . . . . Exploration | -11 -10 -10 -10 -9 -8 ------------- Run | Jun Mat Min Exi Min Mat Turns Passed 3894 | 123 287 642 466 662 1714 Spaces Moved 2535 | 36 187 485 389 471 967 Core 21 | . . . . . 21 Treads . | . . . . . . Legs 2096 | 36 187 485 389 471 528 Wheels 393 | . . . . . 393 Hover . | . . . . . . Flight 25 | . . . . . 25 Fastest Speed 39 | 120 120 120 120 120 39 Average Speed 115 | 120 120 120 120 120 108 Slowest Speed 330 | 120 120 120 120 190 330 Overloaded Moves . | . . . . . . Propulsion Burnouts . | . . . . . . Robots Hopped 2 | . . . . . 2 Cave-ins Triggered . | . . . . . . Exploration Rate (%) 68 | 3 38 98 89 95 86 Regions Visited 5 Branch Regions 3 Pre-discovered Areas 1 | . . 1 . . . Known Exits Taken . | . . . . . . Unknown Exits Taken 5 | 1 1 1 1 1 . Scrap Searched 4 | . . 3 . 1 . Spaces Dug . | . . . . . . Terrain Destroyed 84 | . . 20 . 32 32 Melee . | . . . . . . Projectile . | . . . . . . AOE 84 | . . 20 . 32 32 Terrain Rammed . | . . . . . . Walls Destroyed . | . . . . . . Machines Disabled . | . . . . . . Actions | -11 -10 -10 -10 -9 -8 --------- Run | Jun Mat Min Exi Min Mat Total 3131 | 91 226 523 388 533 1370 Wait 223 | 30 13 7 . 15 158 Move 2526 | 35 186 484 388 470 963 Hop 2 | . . . . . 2 Pick Up 42 | 5 6 7 . 5 19 Fast Attach 21 | 1 3 . . 1 16 Attach 17 | . . . . . 17 Detach 1 | . . . . . 1 Swap 42 | 2 1 6 . 8 25 Drop 50 | 5 5 7 . 9 24 Fire 193 | 13 12 12 . 19 137 Melee . | . . . . . . Ram 6 | . . . . . 6 Kick 8 | . . . . 6 2 Crush . | . . . . . . Escape Stasis . | . . . . . . Rewire . | . . . . . . Trap . | . . . . . . Miscellaneous . | . . . . . . Route ------- -11/Junkyard -10/Materials -10/Mines (discovered 3 exits: [*Mat x2] / *Exi) -10/Exiles (discovered 2 exits: [*Min x2]) -9/Mines -8/Materials (discovered 2 exits: *Fac x2) History --------- Turn | Location | Event 10 | -11/Junkyard | Discovered new exit (range 3) 124 | -11/Junkyard | Entered Materials 314 | -10/Materials | Build established: Mutant 344 | -10/Materials | Discovered new exit (range 10) 411 | -10/Materials | Entered Mines 615 | -10/Mines | Learned location of 1 exit from Materials 669 | -10/Mines | Discovered new exit (range 11) 768 | -10/Mines | Learned location of Zion (-7) 778 | -10/Mines | Deemed a non-threat by the Exiles lab entrance 778 | -10/Mines | Discovered new exit (range 5) 892 | -10/Mines | Learned Materials emergency access door positions 901 | -10/Mines | Discovered new exit (range 8) 905 | -10/Mines | Received a Mining Laser from a helpful Derelict 1053 | -10/Mines | Entered Exiles 1053 | -10/Exiles | Found Exiles lab abandoned 1053 | -10/Exiles | Accompanied by 1 ally 1072 | -10/Exiles | Discovered new exit (range 15) 1506 | -10/Exiles | Discovered new exit (range 14) 1519 | -10/Exiles | Entered Mines 1520 | -9/Mines | Assembled infested the area 1525 | -9/Mines | Assisted by a Guerilla fighting off Assembled 1683 | -9/Mines | Received a Rocket Launcher from a helpful Derelict 1690 | -9/Mines | Core integrity fell below 50% 2024 | -9/Mines | Joined a pair of Derelicts in attacking an 0b10 outpost 2160 | -9/Mines | Learned Materials emergency access door positions 2165 | -9/Mines | Discovered new exit (range 15) 2181 | -9/Mines | Entered Materials 2181 | -8/Materials | Evolved 4 slots: Propulsion x2, Utility x2 2182 | -8/Materials | Identified exit to Factory 2465 | -8/Materials | Build established: Scavenger-Mutant 2483 | -8/Materials | Discovered exit to Factory (range 16) 2655 | -8/Materials | Garrison activated, responded to threat 2975 | -8/Materials | Lost 3 parts (3n) 3381 | -8/Materials | First assault squad dispatched 3494 | -8/Materials | Core integrity fell below 50% 3553 | -8/Materials | Lost 8 parts (4n2u2w) 3811 | -8/Materials | System corruption reached 10% 3841 | -8/Materials | Core integrity fell below 20% 3842 | -8/Materials | Lost 5 parts (2n2u1w) 3895 | -8/Materials | Destroyed by G-50 Soldier with Heavy Laser Last Messages --------------- 03868_ Connecting with Recycling Unit... >>Retrieve(Components) Retrieving 10 components... Hvy. Laser Flight Unit Flight Unit Heat Sink Lgt. Assault Rifle Lgt. Angular Momentum Engine Particle Gun Heat Sink Flight Unit Hvy. Assault Rifle 03868_ Acquired Flight Unit. 03880_ System corrupted: Matter fused (-5). 03884_ R-06 Scavenger inserts Flight Unit into recycling unit. 03887_ R-06 Scavenger inserts Lgt. Treads into recycling unit. 03888_ Flight Unit destroyed. 03890_ R-06 Scavenger inserts Authchip [Propulsion] into recycling unit. 03895_ N UOFBN2D0T&9C P90SD Map ----- +----------------------------------------------------+ | ?????# ## ######## #??? | | """""?????# ## #??????# #??? | | """""?????# ################### #??? | | ! """""?????# =%= #??? | | """""?????# ! =^= #### | | """""?????# * *== """# | | """""?????# T"# | | """"??????# """# | | ??????########### #### | | ########??????????????##% " "^ """ #??? | | ???????????????########## "" *""" ###? | | ??????????###### # """ """ ""#? | | #?????????# ]]## """" # T"#? | | ########### ]]## """" + ""#? | | [## """" # * """ * " " ###? | | [## # """ "T" #??? | | !!## # """ """ #??? | | ######### !!## "" ! # % #??? | | #???????# ###### S"" # ! #??? | | ????????# #????# "" *# ! #########??? | | ????????# #????########## = #???######## | | ######??# #????#######??# #???# ! # | | !#??# #????? ! ??# #???# ! # | | #??# #?????? ?# #???# # | | " #??# #??????""" ?# #???#]] = # | | "" #### #??????"""" /#@ #####]] # | | "" + #?????""""" # #]] ! # | | "" ######?????""""" + i # # | | " #????????? """ # + # | | #????????# # # # | | #+#####################?# g # ! # | | # #?????##########Y##+# "" # | | # * #????##] ] # "Y # | | # #????# [ ![ + "" # | | + """ """ """ #????## """ ""* ![ # # | | # """ """ ""????????# """ " "["Y" ## ##### | | # """ """ ??????????# """ """ """ #?##???? | | ##########??????????# #??????? | | #???????????????????###############??????? | | #????????????????????????????????????????? | | #????????????????????????????????????????? | | #????????????????????????????????????????? | | #????????????????????????????????????????? | | #????????????????????????????????????????? | | ##???????????????????????????????????????? | | ########+???????????????????????????????? | | ????????????????????????????? | | T ???????